[Event "68th Warsaw-ch-A 2019"]
[Site "Warsaw"]
[Date "2019.11.14"]
[Round "3.3"]
[White "Deszczynski, Adam"]
[Black "Mickiewicz, Piotr"]
[Result "1-0"]
[ECO "B85"]
[WhiteElo "2291"]
[BlackElo "2216"]
[Annotator "NA RC"]
[PlyCount "64"]
[EventDate "2019.11.14"]
[EventType "swiss"]
[EventCountry "POL"]
[SourceTitle "playchess.com"]
[Source "ChessBase"]
[SourceQuality "1"]
[TimeControl "5400+30"]

1. e4 {[%emt 0:00:11]} c5 {[%emt 0:00:00]} 2. Nf3 {[%emt 0:00:52]} e6 {[%emt 0:00:02]} 3. d4 {[%emt 0:05:33]} cxd4 {[%emt 0:00:07]} 4. Nxd4 {[%emt 0:00:09]} Nf6 {[%emt 0:00:06]} 5. Nc3 {[%emt 0:00:33]} d6 {[%emt 0:00:06]} 6. Be2 {[%emt 0:07:11]} a6 {[%emt 0:00:06]} 7. O-O {[%emt 0:03:02]} Qc7 {[%emt 0:00:18]} 8. f4 {[%emt 0:03:24]} Be7 {[%emt 0:01:13]} 9. Kh1 {[%emt 0:02:46]} O-O {[%emt 0:01:37]} 10. a4 {[%emt 0:12:04]} Nc6 {[%emt 0:07:27]} 11. Nb3 {[%emt 0:06:28]} b6 {[%emt 0:00:54]} 12. Be3 {[%emt 0:02:08]} Bb7 {[%emt 0:01:24]} 13. Bf3 {[%emt 0:01:46]} Rfe8 {[%emt 0:03:09]} 14. Qd2 {[%emt 0:10:41]} Rab8 {[%emt 0:07:16]} 15. g4 {[%emt 0:07:37]} d5 {[%emt 0:13:03]} 16. e5 {[%emt 0:06:28]} Nxg4 {[%emt 0:02:57]} 17. Bd4 {[%emt 0:03:35]} Nh6 {[%emt 0:01:37]} 18. Ne2 {[%emt 0:01:16]} Nf5 {[%emt 0:09:45]} 19. c3 {[%emt 0:00:32]} a5 {[%emt 0:02:38]} 20. Bg4 {[%emt 0:04:31]} Ba6 {[%emt 0:16:14]} 21. Bxf5 {[%emt 0:02:12]} exf5 {[%emt 0:00:02]} 22. Rg1 {[%emt 0:00:57]} Bxe2 {[%emt 0:06:16]} 23. Qxe2 {[%emt 0:00:15]} Nd8 {[%emt 0:07:39]} 24. Qh5 {[%emt 0:07:21]} Ne6 {[%emt 0:02:40]} 25. Qxf5 {[%emt 0:07:22]} Qc4 {[%emt 0:04:45]} 26. Nd2 {[%emt 0:01:14]} Qe2 {[%emt 0:09:26]} 27. Rg2 {[%emt 0:00:21]} Nxd4 {[%emt 0:00:03]} 28. cxd4 {[%emt 0:00:50]} Qe3 {[%emt 0:00:01]} 29. Rag1 {[%emt 0:01:55]} g6 {[%emt 0:00:22]} 30. Qg4 {[%emt 0:01:14]} Rbc8 {[%emt 0:03:08]} 31. f5 {[%emt 0:00:23]} Bb4 {[%emt 0:00:38]} 32. e6 {[%emt 0:00:35]} Rc6 1-0

[Event "68th Warsaw-ch-A 2019"]
[Site "Warsaw"]
[Date "2019.11.14"]
[Round "3.5"]
[White "Chomczyk, Marek"]
[Black "Kaminski, Jan"]
[Result "1/2-1/2"]
[ECO "B35"]
[WhiteElo "2282"]
[BlackElo "2024"]
[Annotator "NA"]
[PlyCount "102"]
[EventDate "2019.11.14"]
[EventType "swiss"]
[EventCountry "POL"]
[SourceTitle "playchess.com"]
[Source "ChessBase"]
[SourceQuality "1"]
[TimeControl "5400+30"]

1. e4 {[%emt 0:00:00]} c5 {[%emt 0:00:00]} 2. Nf3 {[%emt 0:00:00]} g6 {[%emt 0:00:00]} 3. d4 {[%emt 0:00:00]} cxd4 {[%emt 0:00:00]} 4. Nxd4 {[%emt 0:00:13]} Nc6 {[%emt 0:00:00]} 5. Nc3 {[%emt 0:00:09]} Bg7 {[%emt 0:00:00]} 6. Be3 {[%emt 0:00:07]} Nf6 {[%emt 0:00:00]} 7. Bc4 {[%emt 0:00:09]} O-O {[%emt 0:00:00]} 8. Bb3 {[%emt 0:00:05]} a5 {[%emt 0:00:01]} 9. O-O {[%emt 0:00:13]} a4 {[%emt 0:00:05]} 10. Nxa4 {[%emt 0:00:11]} Nxe4 {[%emt 0:00:07]} 11. Nb5 {[%emt 0:00:07]} Ra6 {[%emt 0:00:06]} 12. c4 {[%emt 0:00:37]} d6 {[%emt 0:02:28]} 13. Qe2 {[%emt 0:00:26]} Nf6 {[%emt 0:00:37]} 14. Rad1 {[%emt 0:00:47]} Na5 {[%emt 0:05:02]} 15. Bc2 {[%emt 0:02:03]} Be6 {[%emt 0:02:31]} 16. b3 {[%emt 0:00:39]} Nc6 {[%emt 0:03:41]} 17. Rfe1 {[%emt 0:06:55]} Ng4 {[%emt 0:00:34]} 18. Bd4 {[%emt 0:12:43]} Nxd4 {[%emt 0:03:27]} 19. Nxd4 {[%emt 0:00:05]} Bxd4 {[%emt 0:00:20]} 20. Rxd4 {[%emt 0:00:06]} Ne5 {[%emt 0:00:14]} 21. Be4 {[%emt 0:01:14]} Qc7 {[%emt 0:00:45]} 22. Rd2 {[%emt 0:07:38]} Bxc4 {[%emt 0:05:44]} 23. Qe3 {[%emt 0:02:32]} Be6 {[%emt 0:02:41]} 24. Rc2 {[%emt 0:00:12]} Nc6 {[%emt 0:01:14]} 25. Nc3 {[%emt 0:06:28]} Nb4 {[%emt 0:03:51]} 26. Rcc1 {[%emt 0:00:16]} Qd7 {[%emt 0:01:38]} 27. Bb1 {[%emt 0:10:58]} Rc8 {[%emt 0:01:25]} 28. Qd4 {[%emt 0:03:14]} Nc6 {[%emt 0:00:58]} 29. Qh4 {[%emt 0:01:46]} Ne5 {[%emt 0:01:29]} 30. Ne4 {[%emt 0:01:20]} Rxc1 {[%emt 0:00:45]} 31. Rxc1 {[%emt 0:00:02]} Rc6 {[%emt 0:00:21]} 32. Re1 {[%emt 0:01:16]} f6 {[%emt 0:02:33]} 33. f4 {[%emt 0:02:04]} Nf7 {[%emt 0:00:23]} 34. Bd3 {[%emt 0:02:49]} Qc8 {[%emt 0:01:20]} 35. h3 {[%emt 0:05:08]} Rc1 {[%emt 0:01:23]} 36. Kh2 {[%emt 0:00:08]} Rxe1 {[%emt 0:00:29]} 37. Qxe1 {[%emt 0:00:05]} Bf5 {[%emt 0:00:28]} 38. Bc4 {[%emt 0:00:40]} Kg7 {[%emt 0:01:15]} 39. a4 {[%emt 0:07:32]} Qd7 {[%emt 0:01:53]} 40. Nc3 {[%emt 0:15:08]} e5 {[%emt 0:01:04]} 41. Qd2 {[%emt 0:00:46]} Be6 {[%emt 0:00:27]} 42. Nd5 {[%emt 0:02:08]} Bxd5 {[%emt 0:01:24]} 43. Bxd5 {[%emt 0:00:24]} Nd8 {[%emt 0:00:41]} 44. Bf3 {[%emt 0:03:00]} Nc6 {[%emt 0:00:36]} 45. fxe5 {[%emt 0:01:13]} fxe5 {[%emt 0:00:46]} 46. Qd5 {[%emt 0:02:30]} Nd4 {[%emt 0:00:29]} 47. a5 {[%emt 0:00:27]} Nxf3+ {[%emt 0:00:50]} 48. gxf3 {[%emt 0:00:05]} Qf7 {[%emt 0:12:04]} 49. Qxd6 {[%emt 0:00:16]} Qxf3 {[%emt 0:00:10]} 50. Qxe5+ {[%emt 0:01:37]} Kh6 {[%emt 0:00:05]} 51. Qb5 {[%emt 0:00:36]} Qf2+ {[%emt 0:00:23]} 1/2-1/2

[Event "68th Warsaw-ch-A 2019"]
[Site "Warsaw"]
[Date "2019.11.14"]
[Round "3.6"]
[White "Grochowski, Kosma"]
[Black "Wiech, Grzegorz"]
[Result "0-1"]
[ECO "B22"]
[WhiteElo "1920"]
[BlackElo "2219"]
[Annotator "RC"]
[PlyCount "136"]
[EventDate "2019.11.14"]
[EventType "swiss"]
[EventCountry "POL"]
[SourceTitle "playchess.com"]
[Source "ChessBase"]
[SourceQuality "1"]
[TimeControl "5400+30"]

1. e4 {[%emt 0:01:41]} c5 {[%emt 0:00:00]} 2. c3 {[%emt 0:00:03]} d5 {[%emt 0:00:00]} 3. exd5 {[%emt 0:00:02]} Nf6 {[%emt 0:00:03]} 4. Nf3 {[%emt 0:11:07]} Nxd5 {[%emt 0:00:10]} 5. d4 {[%emt 0:00:20]} e6 {[%emt 0:00:43]} 6. c4 {[%emt 0:03:22]} Nf6 {[%emt 0:03:07]} 7. Nc3 {[%emt 0:01:21]} Be7 {[%emt 0:07:05]} 8. Be2 {[%emt 0:03:35]} O-O {[%emt 0:00:33]} 9. O-O {[%emt 0:01:07]} cxd4 {[%emt 0:22:56]} 10. Nxd4 {[%emt 0:00:09]} Bd7 {[%emt 0:00:08]} 11. Bf3 {[%emt 0:10:14]} Qc8 {[%emt 0:07:22]} 12. Be3 {[%emt 0:01:33]} Nc6 {[%emt 0:01:12]} 13. Nxc6 {[%emt 0:11:24]} Bxc6 {[%emt 0:00:10]} 14. Bxc6 {[%emt 0:00:02]} Qxc6 {[%emt 0:00:11]} 15. Qe2 {[%emt 0:00:05]} Rac8 {[%emt 0:02:08]} 16. b3 {[%emt 0:02:14]} a6 {[%emt 0:00:32]} 17. Rac1 {[%emt 0:01:36]} Rfd8 {[%emt 0:00:58]} 18. Rfd1 {[%emt 0:07:29]} Rxd1+ {[%emt 0:06:36]} 19. Qxd1 {[%emt 0:00:41]} Rd8 {[%emt 0:00:21]} 20. Qe2 {[%emt 0:00:59]} Ne4 {[%emt 0:04:00]} 21. h3 {[%emt 0:07:51]} f5 {[%emt 0:01:56]} 22. Qc2 {[%emt 0:04:47]} Nxc3 {[%emt 0:05:31]} 23. Qxc3 {[%emt 0:00:03]} Qe4 {[%emt 0:00:51]} 24. Qe1 {[%emt 0:10:22]} Kf7 {[%emt 0:03:13]} 25. Kf1 {[%emt 0:00:44]} Rd3 {[%emt 0:09:16]} 26. Qe2 {[%emt 0:05:21]} g6 {[%emt 0:01:53]} 27. Rd1 {[%emt 0:00:40]} Rxd1+ {[%emt 0:00:55]} 28. Qxd1 {[%emt 0:00:01]} f4 {[%emt 0:00:31]} 29. Bd4 {[%emt 0:01:45]} Bf6 {[%emt 0:07:41]} 30. Bxf6 {[%emt 0:04:33]} Kxf6 {[%emt 0:00:08]} 31. Qd8+ {[%emt 0:00:32]} Ke5 {[%emt 0:00:37]} 32. Qh8+ {[%emt 0:00:30]} Kd6 {[%emt 0:00:12]} 33. Qf8+ {[%emt 0:00:50]} Kc6 {[%emt 0:00:35]} 34. Qc8+ {[%emt 0:00:03]} Kb6 {[%emt 0:00:41]} 35. Qd8+ {[%emt 0:00:26]} Kc5 {[%emt 0:01:52]} 36. Qd2 {[%emt 0:05:29]} Qd4 {[%emt 0:02:53]} 37. Qa5+ {[%emt 0:00:46]} Kc6 {[%emt 0:00:15]} 38. Ke2 {[%emt 0:01:00]} e5 {[%emt 0:00:54]} 39. Qd2 {[%emt 0:01:13]} Qe4+ {[%emt 0:06:49]} 40. Kf1 {[%emt 0:00:02]} Kb6 {[%emt 0:01:39]} 41. Qd6+ {[%emt 0:01:01]} Ka7 {[%emt 0:00:33]} 42. Qc5+ {[%emt 0:00:25]} Kb8 {[%emt 0:00:14]} 43. Qd6+ {[%emt 0:00:45]} Kc8 {[%emt 0:00:08]} 44. Qd1 {[%emt 0:00:57]} Qf5 {[%emt 0:00:26]} 45. Qd2 {[%emt 0:02:27]} e4 {[%emt 0:01:30]} 46. Qd4 {[%emt 0:00:20]} h5 {[%emt 0:00:33]} 47. a4 {[%emt 0:01:01]} f3 {[%emt 0:00:42]} 48. Qd5 {[%emt 0:00:30]} Qxd5 {[%emt 0:00:13]} 49. cxd5 {[%emt 0:00:02]} Kd7 {[%emt 0:00:19]} 50. gxf3 {[%emt 0:00:58]} exf3 {[%emt 0:00:09]} 51. Ke1 {[%emt 0:00:16]} Kd6 {[%emt 0:01:10]} 52. Kd2 {[%emt 0:00:21]} Kxd5 {[%emt 0:00:10]} 53. Ke3 {[%emt 0:00:10]} Kc5 {[%emt 0:00:13]} 54. Kxf3 {[%emt 0:00:35]} Kb4 {[%emt 0:00:08]} 55. Kf4 {[%emt 0:00:17]} Kxb3 {[%emt 0:00:14]} 56. a5 {[%emt 0:00:05]} Kb4 {[%emt 0:00:18]} 57. Kg5 {[%emt 0:00:03]} Kxa5 {[%emt 0:00:17]} 58. Kxg6 {[%emt 0:00:13]} b5 {[%emt 0:00:09]} 59. f4 {[%emt 0:00:28]} b4 {[%emt 0:00:14]} 60. f5 {[%emt 0:00:05]} b3 {[%emt 0:00:08]} 61. f6 {[%emt 0:00:04]} b2 {[%emt 0:00:13]} 62. f7 {[%emt 0:00:30]} b1=Q+ {[%emt 0:00:10]} 63. Kg7 {[%emt 0:00:11]} Qg1+ {[%emt 0:01:02]} 64. Kh8 {[%emt 0:00:16]} Qf2 {[%emt 0:00:19]} 65. Kg8 {[%emt 0:00:13]} Qg3+ {[%emt 0:00:15]} 66. Kh8 {[%emt 0:00:02]} Qf4 {[%emt 0:00:14]} 67. h4 {[%emt 0:00:24]} Kb6 {[%emt 0:02:42]} 68. Kg8 {[%emt 0:00:08]} a5 {[%emt 0:00:09]} 0-1

[Event "68th Warsaw-ch-A 2019"]
[Site "Warsaw"]
[Date "2019.11.14"]
[Round "3.7"]
[White "Goslawski, Michal"]
[Black "Derylo, Kamil"]
[Result "1-0"]
[ECO "A05"]
[WhiteElo "2155"]
[BlackElo "1969"]
[Annotator "NA"]
[PlyCount "79"]
[EventDate "2019.11.14"]
[EventType "swiss"]
[EventCountry "POL"]
[SourceTitle "playchess.com"]
[Source "ChessBase"]
[SourceQuality "1"]
[TimeControl "5400+30"]

1. Nf3 {[%emt 0:00:00]} Nf6 {[%emt 0:00:00]} 2. c4 {[%emt 0:00:00]} e6 {[%emt 0:00:00]} 3. Nc3 {[%emt 0:00:00]} d5 {[%emt 0:00:01]} 4. e3 {[%emt 0:00:00]} c5 {[%emt 0:03:54]} 5. cxd5 {[%emt 0:00:00]} Nxd5 {[%emt 0:01:44]} 6. Nxd5 {[%emt 0:00:08]} exd5 {[%emt 0:02:01]} 7. d4 {[%emt 0:01:30]} Nc6 {[%emt 0:01:10]} 8. Be2 {[%emt 0:01:25]} Bd6 {[%emt 0:03:20]} 9. b3 {[%emt 0:01:51]} O-O {[%emt 0:01:11]} 10. O-O {[%emt 0:04:56]} cxd4 {[%emt 0:02:17]} 11. Nxd4 {[%emt 0:00:30]} Be5 {[%emt 0:06:42]} 12. Bb2 {[%emt 0:06:44]} Qf6 {[%emt 0:02:47]} 13. Rc1 {[%emt 0:01:38]} Nxd4 {[%emt 0:09:12]} 14. Bxd4 {[%emt 0:00:23]} Bxd4 {[%emt 0:00:06]} 15. Qxd4 {[%emt 0:00:07]} Qxd4 {[%emt 0:01:08]} 16. exd4 {[%emt 0:00:07]} Be6 {[%emt 0:01:29]} 17. Rc7 {[%emt 0:02:30]} Rfc8 {[%emt 0:02:38]} 18. Rfc1 {[%emt 0:11:19]} Rxc7 {[%emt 0:02:55]} 19. Rxc7 {[%emt 0:00:07]} Rc8 {[%emt 0:00:36]} 20. Rxb7 {[%emt 0:00:51]} Rc1+ {[%emt 0:01:04]} 21. Bf1 {[%emt 0:00:08]} g6 {[%emt 0:01:23]} 22. g4 {[%emt 0:00:39]} Bxg4 {[%emt 0:01:32]} 23. Kg2 {[%emt 0:00:17]} Rc3 {[%emt 0:02:04]} 24. f3 {[%emt 0:12:26]} Bxf3+ {[%emt 0:00:10]} 25. Kf2 {[%emt 0:00:03]} a5 {[%emt 0:01:08]} 26. Ra7 {[%emt 0:00:26]} h5 {[%emt 0:02:04]} 27. Rxa5 {[%emt 0:04:10]} Be4 {[%emt 0:01:29]} 28. Rc5 {[%emt 0:06:14]} Rf3+ {[%emt 0:05:37]} 29. Ke1 {[%emt 0:00:19]} Re3+ {[%emt 0:01:27]} 30. Kf2 {[%emt 0:01:24]} Rf3+ {[%emt 0:00:09]} 31. Ke1 {[%emt 0:00:04]} h4 {[%emt 0:04:53]} 32. b4 {[%emt 0:04:37]} Ra3 {[%emt 0:04:54]} 33. b5 {[%emt 0:07:46]} Rxa2 {[%emt 0:06:42]} 34. b6 {[%emt 0:01:41]} Ra1+ {[%emt 0:01:14]} 35. Kf2 {[%emt 0:00:34]} Ra2+ {[%emt 0:00:56]} 36. Kg1 {[%emt 0:01:31]} Ra1 {[%emt 0:00:59]} 37. b7 {[%emt 0:00:57]} Rb1 {[%emt 0:01:17]} 38. Rb5 {[%emt 0:01:38]} Rxf1+ {[%emt 0:00:10]} 39. Kxf1 {[%emt 0:00:04]} Bd3+ {[%emt 0:00:05]} 40. Kf2 {[%emt 0:00:07]} 1-0

[Event "68th Warsaw-ch-A 2019"]
[Site "Warsaw"]
[Date "2019.11.14"]
[Round "3.8"]
[White "Sliwerski, Radoslaw"]
[Black "Janeczko, Jakub"]
[Result "1/2-1/2"]
[ECO "A43"]
[WhiteElo "2091"]
[BlackElo "1839"]
[Annotator "NA"]
[PlyCount "68"]
[EventDate "2019.11.14"]
[EventType "swiss"]
[EventCountry "POL"]
[SourceTitle "playchess.com"]
[Source "ChessBase"]
[SourceQuality "1"]
[TimeControl "5400+30"]

1. d4 {[%emt 0:00:00]} c5 {[%emt 0:09:25]} 2. d5 {[%emt 0:00:00]} g6 {[%emt 0:00:54]} 3. e4 {[%emt 0:00:48]} d6 {[%emt 0:00:08]} 4. Nf3 {[%emt 0:00:29]} Bg7 {[%emt 0:00:27]} 5. Be2 {[%emt 0:00:59]} Nd7 {[%emt 0:06:37]} 6. O-O {[%emt 0:00:19]} Ngf6 {[%emt 0:00:46]} 7. Nc3 {[%emt 0:00:06]} O-O {[%emt 0:00:06]} 8. Nd2 {[%emt 0:00:13]} a6 {[%emt 0:01:43]} 9. a4 {[%emt 0:00:04]} Re8 {[%emt 0:02:30]} 10. a5 {[%emt 0:00:27]} b5 {[%emt 0:06:13]} 11. axb6 {[%emt 0:00:45]} Nxb6 {[%emt 0:00:02]} 12. Nb3 {[%emt 0:02:09]} Qc7 {[%emt 0:05:26]} 13. Bf4 {[%emt 0:04:12]} Nfd7 {[%emt 0:02:06]} 14. Qd2 {[%emt 0:04:34]} Ne5 {[%emt 0:02:10]} 15. Na5 {[%emt 0:03:10]} Bd7 {[%emt 0:03:34]} 16. h3 {[%emt 0:03:09]} Bh8 {[%emt 0:03:28]} 17. Ra2 {[%emt 0:04:27]} e6 {[%emt 0:07:34]} 18. Be3 {[%emt 0:04:26]} exd5 {[%emt 0:04:01]} 19. exd5 {[%emt 0:03:18]} f5 {[%emt 0:05:26]} 20. Rfa1 {[%emt 0:02:28]} Ra7 {[%emt 0:03:39]} 21. Bf1 {[%emt 0:07:55]} Nf7 {[%emt 0:06:12]} 22. Nb3 {[%emt 0:01:42]} Bxc3 {[%emt 0:01:45]} 23. bxc3 {[%emt 0:01:37]} Ne5 {[%emt 0:02:40]} 24. Rxa6 {[%emt 0:04:23]} Rxa6 {[%emt 0:00:11]} 25. Rxa6 {[%emt 0:00:10]} Bc8 {[%emt 0:02:06]} 26. Ra1 {[%emt 0:02:04]} Bb7 {[%emt 0:00:41]} 27. Rd1 {[%emt 0:08:03]} Bxd5 {[%emt 0:03:11]} 28. c4 {[%emt 0:01:39]} Bf7 {[%emt 0:04:10]} 29. Bf4 {[%emt 0:13:40]} Nbxc4 {[%emt 0:02:10]} 30. Qc3 {[%emt 0:01:46]} Nb6 {[%emt 0:00:44]} 31. Bb5 {[%emt 0:04:40]} Rc8 {[%emt 0:01:42]} 32. Ba6 {[%emt 0:02:48]} Re8 {[%emt 0:00:57]} 33. Bb5 {[%emt 0:00:12]} Rc8 {[%emt 0:01:04]} 34. Ba6 {[%emt 0:00:06]} Re8 {[%emt 0:01:18]} 1/2-1/2

[Event "68th Warsaw-ch-A 2019"]
[Site "Warsaw"]
[Date "2019.11.14"]
[Round "3.9"]
[White "Praczukowski, Stanislaw"]
[Black "Korcz, Daniel"]
[Result "1-0"]
[ECO "C63"]
[WhiteElo "2069"]
[BlackElo "1807"]
[Annotator "NA RC"]
[PlyCount "61"]
[EventDate "2019.11.14"]
[EventType "swiss"]
[EventCountry "POL"]
[SourceTitle "playchess.com"]
[Source "ChessBase"]
[SourceQuality "1"]
[TimeControl "5400+30"]

1. e4 {[%emt 0:00:15]} e5 {[%emt 0:01:48]} 2. Nf3 {[%emt 0:01:48]} Nc6 {[%emt 0:00:01]} 3. Bb5 {[%emt 0:00:25]} f5 {[%emt 0:01:30]} 4. Nc3 {[%emt 0:00:30]} fxe4 {[%emt 0:01:20]} 5. Nxe4 {[%emt 0:00:31]} Nf6 {[%emt 0:00:10]} 6. Nxf6+ {[%emt 0:00:47]} Qxf6 {[%emt 0:00:40]} 7. Qe2 {[%emt 0:00:46]} Be7 {[%emt 0:01:11]} 8. Bxc6 {[%emt 0:00:25]} bxc6 {[%emt 0:02:14]} 9. Qxe5 {[%emt 0:05:36]} O-O {[%emt 0:00:22]} 10. Qxf6 {[%emt 0:03:05]} Bxf6 {[%emt 0:00:02]} 11. d4 {[%emt 0:02:04]} Ba6 {[%emt 0:05:09]} 12. Be3 {[%emt 0:05:03]} Rab8 {[%emt 0:05:02]} 13. Rb1 {[%emt 0:16:59]} c5 {[%emt 0:09:01]} 14. Kd2 {[%emt 0:10:42]} cxd4 {[%emt 0:04:20]} 15. Nxd4 {[%emt 0:01:20]} c5 {[%emt 0:02:37]} 16. Nb3 {[%emt 0:03:33]} d6 {[%emt 0:06:37]} 17. Rhe1 {[%emt 0:09:18]} Bc4 {[%emt 0:10:41]} 18. c3 {[%emt 0:09:42]} a5 {[%emt 0:10:02]} 19. Nc1 {[%emt 0:07:00]} a4 {[%emt 0:03:20]} 20. b3 {[%emt 0:03:49]} Rb7 {[%emt 0:03:15]} 21. b4 {[%emt 0:06:08]} a3 {[%emt 0:02:23]} 22. g4 {[%emt 0:09:11]} Rfb8 {[%emt 0:13:23]} 23. g5 {[%emt 0:00:06]} cxb4 {[%emt 0:00:29]} 24. gxf6 {[%emt 0:00:14]} bxc3+ {[%emt 0:04:13]} 25. Kxc3 {[%emt 0:00:03]} Rxb1 {[%emt 0:00:30]} 26. Kxc4 {[%emt 0:00:09]} Rc8+ {[%emt 0:01:55]} 27. Kd5 {[%emt 0:00:33]} gxf6 {[%emt 0:01:21]} 28. Ke6 {[%emt 0:00:58]} h5 {[%emt 0:08:15]} 29. Rg1+ {[%emt 0:00:16]} Kh7 {[%emt 0:00:24]} 30. Kxf6 {[%emt 0:00:50]} d5 {[%emt 0:02:06]} 31. Ke5 {[%emt 0:01:07]} 1-0

[Event "68th Warsaw-ch-A 2019"]
[Site "Warsaw"]
[Date "2019.11.14"]
[Round "3.10"]
[White "Liberadzki, Slawomir"]
[Black "Sacharewicz, Krzysztof"]
[Result "1-0"]
[ECO "A25"]
[WhiteElo "1999"]
[BlackElo "1860"]
[Annotator "NA RC"]
[PlyCount "77"]
[EventDate "2019.11.14"]
[EventType "swiss"]
[EventCountry "POL"]
[SourceTitle "playchess.com"]
[Source "ChessBase"]
[SourceQuality "1"]
[TimeControl "5400+30"]

1. c4 {[%emt 0:14:27]} e5 {[%emt 0:00:14]} 2. Nc3 {[%emt 0:00:13]} Nc6 {[%emt 0:00:47]} 3. g3 {[%emt 0:00:15]} f5 {[%emt 0:01:22]} 4. Bg2 {[%emt 0:00:13]} Nf6 {[%emt 0:00:37]} 5. d3 {[%emt 0:01:37]} Bb4 {[%emt 0:00:49]} 6. Bd2 {[%emt 0:00:51]} d6 {[%emt 0:00:25]} 7. a3 {[%emt 0:03:35]} Bxc3 {[%emt 0:00:25]} 8. Bxc3 {[%emt 0:00:08]} O-O {[%emt 0:03:00]} 9. b4 {[%emt 0:05:34]} Qe8 {[%emt 0:06:20]} 10. b5 {[%emt 0:01:26]} Nd8 {[%emt 0:01:44]} 11. e3 {[%emt 0:08:31]} c6 {[%emt 0:11:24]} 12. bxc6 {[%emt 0:03:35]} bxc6 {[%emt 0:02:13]} 13. Ne2 {[%emt 0:03:52]} Rb8 {[%emt 0:05:18]} 14. Qa4 {[%emt 0:08:20]} a6 {[%emt 0:05:12]} 15. O-O {[%emt 0:11:26]} Qg6 {[%emt 0:08:07]} 16. c5 {[%emt 0:13:25]} f4 {[%emt 0:21:48]} 17. exf4 {[%emt 0:01:38]} Qxd3 {[%emt 0:00:36]} 18. fxe5 {[%emt 0:02:22]} Nd7 {[%emt 0:03:41]} 19. Qd1 {[%emt 0:03:08]} Qxd1 {[%emt 0:05:59]} 20. Rfxd1 {[%emt 0:01:53]} dxe5 {[%emt 0:02:33]} 21. Bh3 {[%emt 0:03:21]} Nxc5 {[%emt 0:08:11]} 22. Bxe5 {[%emt 0:02:27]} Ra8 {[%emt 0:00:25]} 23. Bg2 {[%emt 0:02:38]} Bg4 {[%emt 0:03:14]} 24. Bd6 {[%emt 0:03:26]} Bxe2 {[%emt 0:01:38]} 25. Re1 {[%emt 0:00:01]} Re8 {[%emt 0:03:01]} 26. Bxc5 {[%emt 0:00:13]} Bh5 {[%emt 0:00:17]} 27. Rec1 {[%emt 0:02:12]} Re6 {[%emt 0:01:58]} 28. Bb6 {[%emt 0:01:19]} Be8 {[%emt 0:00:01]} 29. a4 {[%emt 0:00:39]} Rh6 {[%emt 0:01:28]} 30. a5 {[%emt 0:00:24]} Nf7 {[%emt 0:01:16]} 31. Rc5 {[%emt 0:00:41]} Rc8 {[%emt 0:00:54]} 32. Bf1 {[%emt 0:00:37]} Ra8 {[%emt 0:00:13]} 33. Re1 {[%emt 0:00:33]} Nd6 {[%emt 0:00:41]} 34. Rce5 {[%emt 0:01:09]} Bf7 {[%emt 0:00:30]} 35. Be3 {[%emt 0:00:47]} Re6 {[%emt 0:00:23]} 36. Rxe6 {[%emt 0:00:12]} Bxe6 {[%emt 0:00:01]} 37. Bf4 {[%emt 0:00:22]} Bf5 38. Be3 Be6 39. Bf4 1-0

[Event "68th Warsaw-ch-A 2019"]
[Site "Warsaw"]
[Date "2019.11.15"]
[Round "4.1"]
[White "Jarmula, Lukasz"]
[Black "Kozak, Antoni"]
[Result "1-0"]
[ECO "B23"]
[WhiteElo "2466"]
[BlackElo "2350"]
[Annotator "ChessBase"]
[PlyCount "61"]
[EventDate "2019.11.14"]
[EventType "swiss"]
[EventCountry "POL"]
[SourceTitle "playchess.com"]
[Source "ChessBase"]
[SourceQuality "1"]
[TimeControl "5400+30"]

1. e4 {[%emt 0:02:20]} c5 {[%emt 0:00:36]} 2. Nc3 {[%emt 0:00:06]} a6 {[%emt 0:03:06]} 3. Nge2 {[%emt 0:01:26]} e6 {[%emt 0:03:22]} 4. g3 {[%emt 0:03:33]} b5 {[%emt 0:00:06]} 5. Bg2 {[%emt 0:00:48]} Bb7 {[%emt 0:00:15]} 6. d4 Nf6 {[%emt 0:13:23]} 7. d5 {[%emt 0:09:59]} b4 {[%emt 0:01:26]} 8. Nb1 {[%emt 0:11:55]} e5 {[%emt 0:15:58]} 9. a3 {[%emt 0:05:03]} a5 {[%emt 0:04:37]} 10. O-O {[%emt 0:08:25]} d6 {[%emt 0:01:38]} 11. axb4 {[%emt 0:04:50]} cxb4 {[%emt 0:00:06]} 12. c3 {[%emt 0:04:51]} Na6 {[%emt 0:04:03]} 13. Qa4+ {[%emt 0:02:43]} Nd7 {[%emt 0:00:30]} 14. Be3 {[%emt 0:05:58]} Nac5 {[%emt 0:06:11]} 15. Bxc5 {[%emt 0:00:52]} dxc5 {[%emt 0:00:04]} 16. Nd2 {[%emt 0:01:38]} Ba6 {[%emt 0:01:32]} 17. Rfe1 {[%emt 0:03:51]} Bd6 {[%emt 0:00:25]} 18. Bh3 {[%emt 0:05:03]} Ke7 {[%emt 0:00:07]} 19. Nb3 {[%emt 0:07:08]} Qc7 {[%emt 0:09:37]} 20. Nxa5 {[%emt 0:03:40]} Nb6 {[%emt 0:01:48]} 21. Nc6+ {[%emt 0:01:00]} Kf6 {[%emt 0:00:57]} 22. Qc2 {[%emt 0:01:24]} Bb5 {[%emt 0:02:50]} 23. cxb4 {[%emt 0:01:36]} Bxc6 {[%emt 0:02:24]} 24. dxc6 {[%emt 0:01:06]} cxb4 {[%emt 0:02:17]} 25. Rxa8 {[%emt 0:07:16]} Rxa8 {[%emt 0:00:06]} 26. Nd4 {[%emt 0:00:51]} exd4 {[%emt 0:01:50]} 27. e5+ {[%emt 0:00:13]} Bxe5 {[%emt 0:00:07]} 28. Qf5+ {[%emt 0:01:38]} Ke7 {[%emt 0:00:04]} 29. Rxe5+ {[%emt 0:00:05]} Kf8 {[%emt 0:00:03]} 30. Re1 {[%emt 0:00:13]} Re8 {[%emt 0:03:52]} 31. Qc5+ {[%emt 0:00:37]} 1-0